bitfinex-derivatives/quotes_ETHF0:USTF0_20250321
["timestamp","ask_amount","ask_price","bid_price","bid_amount"]
[1742554032804,2.39949,1968.3,1968.2,1.68544]
[1742554033702,1.3829,1968.3,1968.2,1.68544]
[1742554033902,2.39949,1968.3,1968.2,1.68544]
[1742554034804,1.3829,1968.3,1968.2,1.68544]
[1742554035806,1.3829,1968.3,1968.2,2.97684]
[1742554036307,2.39949,1968.3,1968.2,2.97684]
[1742554036699,2.39949,1968.3,1968.2,2.30804]
[1742554037005,3.05919,1968.3,1968.2,2.30804]
[1742554037801,3.05919,1968.3,1968.2,1.01664]
[1742554038404,3.05919,1968.3,1967.9,4.92473]
[1742554038405,1.01674,1968.0,1967.9,4.92473]
[1742554038706,1.01674,1968.0,1967.9,6.22533]
[1742554038909,3.02284,1968.0,1967.9,6.22533]
[1742554041002,2.0061,1968.0,1967.9,6.22533]
[1742554041409,3.02284,1968.0,1967.9,6.22533]
[1742554045008,3.02284,1968.0,1967.9,1.3006]
[1742554045305,1.01685,1967.8,1967.7,0.00761982]
[1742554045506,1.01685,1967.8,1967.7,1.02451982]
[1742554046106,1.01685,1967.8,1967.7,3.07841982]
[1742554046511,1.01685,1967.8,1967.7,2.39651982]
[1742554048310,1.01685,1967.8,1967.7,1.37961982]
[1742554048511,1.01685,1967.8,1967.7,0.00761982]
[1742554049203,1.01685,1967.8,1967.7,1.02451982]
[1742554049714,1.01685,1967.8,1967.7,0.00761982]
[1742554050414,1.01685,1967.8,1967.7,1.02451982]
[1742554050602,4.37985,1967.8,1967.7,2.39071982]
[1742554051213,1.01685,1967.8,1967.7,2.39071982]
[1742554051610,2.38864,1967.9,1967.8,1.01685]
[1742554051805,2.38864,1967.9,1967.8,3.04745]
[1742554052206,2.38864,1967.9,1967.8,1.3662]
[1742554052412,1.01685,1967.8,1967.7,1.02447982]
[1742554052614,2.31495,1967.8,1967.7,2.39067982]
[1742554054314,2.31495,1967.8,1967.7,3.03327982]
[1742554054808,2.31495,1967.8,1967.7,2.39067982]
[1742554055716,1.2981,1967.8,1967.7,2.39067982]
[1742554056012,0.6751,1968.0,1967.9,1.01679]
[1742554056205,2.36171,1968.1,1968.0,1.01674]
[1742554056404,2.36171,1968.1,1968.0,2.33094]
[1742554056612,2.36171,1968.1,1968.0,3.02004]
[1742554057514,2.36169,1968.1,1968.0,3.02004]
[1742554057715,1.345,1968.1,1968.0,3.02004]
[1742554057906,2.36169,1968.1,1968.0,3.02004]
[1742554058107,1.345,1968.1,1968.0,3.02004]
[1742554059214,2.36169,1968.1,1968.0,1.01674]
[1742554059415,3.07309,1968.1,1968.0,2.33924]
[1742554060009,2.36169,1968.1,1968.0,2.33924]
[1742554060211,2.36169,1968.1,1968.0,1.3225]
[1742554060415,1.01674,1968.0,1967.9,1.70936]
[1742554060630,2.97114,1968.0,1967.9,1.70936]
[1742554061716,1.9544,1968.0,1967.9,1.70936]
[1742554061907,2.30194,1968.0,1967.9,4.91716]
[1742554066612,2.30194,1968.0,1967.9,1.70936]
[1742554066807,2.30194,1968.0,1967.9,3.9004]
[1742554067118,2.30194,1968.0,1967.8,1.3225]
[1742554067119,1.01679,1967.9,1967.8,1.01685]
[1742554067316,1.01685,1967.8,1967.7,5.54567982]
[1742554067616,1.71025,1967.8,1967.7,2.33787982]
[1742554067917,3.10835,1967.8,1967.7,2.33787982]
[1742554068412,3.10835,1967.8,1967.7,5.54567982]
[1742554076216,6.47135,1967.8,1967.7,4.23227982]
[1742554076424,1.01695,1967.7,1967.6,1.01693]
[1742554076625,2.38235,1967.7,1967.6,1.01693]
[1742554077825,1.01695,1967.6,1967.5,43.23959982]
[1742554078023,2.99905,1967.6,1967.5,43.23959982]
[1742554079524,2.99905,1967.6,1967.5,42.22261982]
[1742554079718,6.36205,1967.6,1967.5,40.80761982]
[1742554080924,6.36205,1967.6,1967.5,0.00761982]
[1742554081328,6.36205,1967.6,1967.1,1.01716]
[1742554081329,5.75677222,1967.6,1967.1,1.01716]
[1742554081519,1.0171,1967.3,1967.2,40.8]
[1742554081719,4.3801,1967.3,1967.2,40.8]
[1742554082016,7.0269,1967.3,1967.2,40.8]
[1742554083132,7.0269,1967.3,1967.2,42.0822]
[1742554083626,7.0269,1967.3,1967.2,40.8]
[1742554084723,7.0269,1967.3,1967.2,42.1697]
[1742554084925,7.0269,1967.3,1967.2,40.8]
[1742554085619,6.3722,1967.3,1967.2,41.81716]
[1742554085821,3.2078,1967.6,1967.5,1.017]
[1742554086027,2.33005,1967.6,1967.5,1.017]
[1742554086531,2.33005,1967.6,1967.5,41.817]
[1742554086718,2.33005,1967.6,1967.5,43.14]
[1742554092434,3.2153519,1967.8,1967.5,42.123]
[1742554092634,7.5952319,1967.8,1967.7,1.0169]
[1742554092830,4.2322319,1967.8,1967.7,1.0169]
[1742554093030,3.2153519,1967.8,1967.7,2.3077]
[1742554093230,1.0244019,1967.8,1967.7,2.3077]
[1742554094334,2.4005019,1967.8,1967.7,2.3077]
[1742554094928,1.0244019,1967.8,1967.7,2.3077]
[1742554095333,2.4005019,1967.8,1967.7,2.3077]
[1742554095835,0.0075519,1967.8,1967.7,5.5155]
[1742554096739,0.0075519,1967.8,1967.7,49.6785]
[1742554100636,7.58647,1968.2,1968.1,1.01669]
[1742554100836,3.2078,1968.2,1968.1,1.01669]
[1742554101539,3.2078,1968.2,1968.1,2.40329]
[1742554101739,1.4089,1968.3,1968.2,1.01664]
[1742554102038,2.43310982,1968.3,1968.2,3.05484]
[1742554104734,2.43310982,1968.3,1968.2,1.3628]
[1742554104935,1.01669,1968.2,1968.1,1.01667]
[1742554105238,2.39749,1968.2,1968.1,1.3881]
[1742554105437,1.01669,1968.1,1968.0,0.6983]
[1742554105743,2.39749,1968.1,1968.0,1.01674]
[1742554106043,1.01674,1968.0,1967.9,2.40487]
[1742554106241,3.07204,1968.0,1967.9,2.40487]
[1742554106640,2.0553,1968.0,1967.9,2.40487]
[1742554107139,1.3808,1968.0,1967.9,2.40487]
[1742554107343,5.02727,1968.2,1968.1,1.01669]
[1742554107535,3.362,1968.2,1968.1,1.01669]
[1742554108541,4.6784,1968.2,1968.1,1.01669]
[1742554109038,4.6784,1968.2,1968.1,1.71339]
[1742554109745,3.21541982,1968.3,1968.2,1.01664]
[1742554109947,3.21541982,1968.3,1968.2,3.06554]
[1742554110140,5.54840982,1968.3,1968.2,3.06554]
[1742554110545,5.54840982,1968.3,1968.2,2.35494]
[1742554113850,1.32401982,1968.3,1968.2,2.35494]
[1742554117546,2.34060982,1968.3,1968.2,2.35494]
[1742554117851,1.32401982,1968.3,1968.2,2.35494]
[1742554118946,0.00761982,1968.3,1968.2,2.35494]
[1742554119748,1.37881982,1968.3,1968.2,2.35494]
[1742554119945,0.6486,1968.5,1968.4,1.01654]
[1742554120147,1.66508,1968.5,1968.4,1.01654]
[1742554122950,0.6486,1968.5,1968.4,1.01654]
[1742554123554,2.0023,1968.5,1968.4,1.01654]
[1742554124054,3.01878,1968.5,1968.4,1.66694]
[1742554125861,3.01878,1968.5,1968.4,1.01654]
[1742554128456,3.01878,1968.5,1968.4,1.66924]
[1742554128658,2.0023,1968.5,1968.4,1.66924]
[1742554128858,3.01878,1968.5,1968.4,1.66924]
[1742554129159,2.0023,1968.5,1968.4,1.66924]
[1742554129364,3.01878,1968.5,1968.4,1.66924]
[1742554130052,3.01878,1968.5,1968.4,1.01654]
[1742554130753,3.01878,1968.5,1968.4,2.42084]
[1742554131158,2.0023,1968.5,1968.4,2.42084]
[1742554131358,3.01878,1968.5,1968.4,2.42084]
[1742554131660,2.0023,1968.5,1968.4,2.42084]
[1742554132259,3.01878,1968.5,1968.4,2.42084]
[1742554134461,3.01878,1968.5,1968.3,1.02415982]
[1742554134462,1.01654,1968.4,1968.3,1.02415982]
[1742554134667,3.07864,1968.4,1968.3,0.00761982]
[1742554134962,3.07864,1968.4,1968.3,1.02420982]
[1742554136665,1.01696,1967.7,1967.6,1.01691]
[1742554136864,5.58420128,1968.4,1967.4,5.7504]
[1742554136865,4.37688,1967.8,1967.7,1.0169]
[1742554137060,4.37688,1967.8,1967.6,2.40721]
[1742554137061,1.0169,1967.7,1967.6,2.40721]
[1742554137260,1.7264,1967.7,1967.6,2.40721]
[1742554139859,1.7264,1967.7,1967.6,1.3903]
[1742554140060,1.01695,1967.6,1967.5,40.80761982]
[1742554140362,4.37695,1967.6,1967.5,40.80761982]
[1742554142266,4.95235,1967.6,1967.5,40.80761982]
[1742554142871,4.37695,1967.6,1967.5,40.80761982]
[1742554143064,4.37695,1967.6,1967.5,43.19281982]
[1742554143262,3.9173,1967.7,1967.6,1.01695]
[1742554143263,3.2078,1967.7,1967.6,1.01695]
[1742554143572,4.38446982,1967.8,1967.7,1.0169]
[1742554143869,4.38446982,1967.8,1967.7,1.7032]
[1742554144070,3.36761982,1967.8,1967.7,1.7032]
[1742554144371,0.00761982,1967.8,1967.7,1.7032]
[1742554144969,1.02446982,1967.8,1967.7,1.7032]
[1742554146467,1.02446982,1967.8,1967.7,0.6863]
[1742554146672,1.02446982,1967.8,1967.7,1.7032]
[1742554146969,1.02446982,1967.8,1967.7,3.0392]
[1742554148369,1.02446982,1967.8,1967.7,2.0223]
[1742554148770,1.02446982,1967.8,1967.7,3.0392]
[1742554151674,1.01695,1967.6,1967.5,1.02461982]
[1742554152159,1.01695,1967.6,1967.5,41.82461982]
[1742554153167,1.01695,1967.6,1967.5,42.11411982]
[1742554153373,1.01695,1967.6,1967.5,43.13111982]
[1742554154172,4.88723,1967.7,1967.6,1.01695]
[1742554154473,4.88723,1967.7,1967.6,2.42855]
[1742554154869,3.2078,1967.7,1967.6,2.42855]
[1742554155069,3.36761982,1967.8,1967.7,1.0169]
[1742554155374,3.36761982,1967.8,1967.7,2.4285]
[1742554155564,3.36761982,1967.8,1967.7,43.2285]
[1742554155764,0.00761982,1967.8,1967.7,43.2285]
[1742554158183,0.00761982,1967.8,1967.7,46.4363]
[1742554163773,0.00761982,1967.8,1967.7,49.7963]
[1742554166576,0.00761982,1967.8,1967.7,46.5885]
[1742554169782,0.6814,1968.1,1968.0,1.01674]
[1742554170081,2.0404,1968.1,1968.0,1.01674]
[1742554171674,1.359,1968.1,1968.0,1.01674]
[1742554172580,2.37569,1968.1,1968.0,1.01674]
[1742554173383,1.359,1968.1,1968.0,1.01674]
[1742554175173,2.37569,1968.1,1968.0,1.01674]
[1742554175881,1.01674,1968.0,1967.9,1.3611]
[1742554176185,1.01674,1968.0,1967.8,1.01683]
[1742554176186,1.01685,1967.9,1967.8,1.01683]
[1742554176381,1.69035,1967.9,1967.8,1.01683]
[1742554176588,2.0217,1967.9,1967.8,3.01373]
[1742554179187,3.03849,1967.9,1967.8,2.35343]
[1742554179391,3.03849,1967.9,1967.8,1.01683]
[1742554180185,1.01685,1967.8,1967.7,41.81686]
[1742554180387,8.88135,1967.8,1967.7,40.8]
[1742554180590,7.8645,1967.8,1967.5,1.02457982]
[1742554180790,1.01695,1967.6,1967.5,1.02457982]
[1742554181189,2.38195,1967.6,1967.5,41.82457982]
[1742554181382,2.38195,1967.6,1967.5,40.80761982]
[1742554181588,2.38195,1967.6,1967.5,41.82461982]
[1742554182392,1.365,1967.6,1967.5,41.82461982]
[1742554182694,2.38195,1967.6,1967.5,41.82461982]
[1742554183290,1.365,1967.6,1967.5,41.82461982]
[1742554183483,1.365,1967.6,1967.5,42.53211982]
[1742554190193,2.38195,1967.6,1967.5,42.53211982]
[1742554191092,2.38195,1967.6,1967.5,41.82461982]
[1742554192200,5.74095,1967.6,1967.5,1.02461982]
[1742554192891,5.74095,1967.6,1967.5,41.82461982]
[1742554193294,4.724,1967.6,1967.5,41.82461982]
[1742554193500,5.74095,1967.6,1967.5,42.47801982]
[1742554193691,1.365,1967.6,1967.5,42.47801982]
[1742554194198,3.359,1967.8,1967.7,1.0169]
[1742554194501,5.04933,1967.9,1967.8,1.01685]
[1742554194801,0.6735,1967.9,1967.8,1.01685]
[1742554194995,4.37576,1968.0,1967.9,1.01679]
[1742554195497,4.37574,1968.0,1967.9,1.01679]
[1742554196006,5.78414,1968.0,1967.9,2.32809]
[1742554196498,5.78414,1968.0,1967.9,1.01679]
[1742554197001,1.01679,1967.9,1967.8,2.9834]
[1742554197299,2.42519,1967.9,1967.8,2.3281]
[1742554198096,1.01685,1967.8,1967.7,1.67216]
[1742554198298,2.42525,1967.8,1967.7,2.98346]
[1742554199604,2.42525,1967.8,1967.7,2.32816]
[1742554201402,2.42525,1967.8,1967.6,1.71072]
[1742554201403,1.0169,1967.7,1967.6,1.71072]
[1742554201700,3.0578,1967.7,1967.6,1.71072]
[1742554202006,3.0578,1967.7,1967.6,3.09312]
[1742554204204,2.0409,1967.7,1967.6,3.09312]
[1742554204399,3.0578,1967.7,1967.6,3.09312]
[1742554204603,7.58365,1967.8,1967.7,1.0169]
[1742554204803,5.73995,1967.8,1967.7,2.3993]
[1742554205807,5.73995,1967.8,1967.7,1.3824]
[1742554206104,1.0169,1967.7,1967.6,0.6938]
[1742554206302,3.0252,1967.7,1967.6,3.03115]
[1742554206703,3.0252,1967.7,1967.6,2.33735]
[1742554208309,3.359,1967.8,1967.7,1.0169]
[1742554208510,5.73035,1967.8,1967.7,2.3707]
[1742554211698,7.25565,1967.8,1967.5,42.53288982]
[1742554211910,7.25565,1967.8,1967.5,0.00761982]
[1742554211911,1.01695,1967.6,1967.5,0.00761982]
[1742554212110,4.37495,1967.6,1967.5,0.00761982]
[1742554212302,4.37495,1967.6,1967.2,1.01713]
[1742554212303,1.01716,1967.3,1967.2,1.01713]
[1742554212503,1.01716,1967.3,1967.2,1.4045]
[1742554212805,1.01716,1967.2,1967.1,1.69777]
[1742554213004,1.69026,1967.2,1967.1,2.0851]
[1742554213404,1.69026,1967.2,1967.1,3.10231]
[1742554213605,3.07426,1967.2,1967.1,3.10231]
[1742554213799,3.07426,1967.2,1967.1,2.0851]
[1742554214012,3.07426,1967.2,1967.1,1.4045]
[1742554214316,1.01721,1967.1,1967.0,0.00761982]
[1742554214506,5.55101,1967.1,1967.0,0.00761982]
[1742554214809,5.55101,1967.1,1967.0,40.80761982]
[1742554215312,7.07684,1967.1,1966.7,1.0174]
[1742554215501,1.01736,1966.8,1966.7,1.0174]
[1742554215703,1.01736,1966.8,1966.7,41.8174]
[1742554215903,1.01736,1966.8,1966.7,43.1774]
[1742554216297,1.68066,1966.8,1966.7,43.1774]
[1742554218005,1.68066,1966.8,1966.7,42.16]
[1742554218509,1.326,1966.9,1966.7,43.17742]
[1742554218709,1.326,1966.9,1966.8,2.33766]
[1742554219606,2.34331,1966.9,1966.8,1.3203]
[1742554219917,7.58402,1967.1,1966.8,3.86362]
[1742554220111,7.58402,1967.1,1967.0,1.01726]
[1742554220307,7.58402,1967.1,1967.0,41.81726]
[1742554220811,7.58402,1967.1,1967.0,42.52206]
[1742554221510,4.22502,1967.1,1967.0,42.52206]
[1742554222312,5.53412,1967.1,1967.0,42.52206]
[1742554222515,2.32632,1967.1,1967.0,41.5048]
[1742554223118,2.32632,1967.1,1967.0,43.93406]
[1742554223823,1.01735,1966.9,1966.6,2.55126982]
[1742554224116,1.01735,1966.9,1966.8,1.01732]
[1742554224316,1.01735,1966.9,1966.8,41.81732]
[1742554224508,1.68375,1966.9,1966.8,43.22136]
[1742554226117,4.3763,1967.0,1966.9,1.01731]
[1742554226419,4.3763,1967.0,1966.9,2.41141]
[1742554227217,4.37626,1967.0,1966.9,2.41141]
[1742554227417,1.01726,1967.0,1966.9,2.41141]
[1742554227712,1.72505,1967.1,1967.0,1.01726]
[1742554227914,1.72505,1967.1,1967.0,2.41136]
[1742554228420,1.72505,1967.1,1967.0,1.3941]
[1742554228618,1.72505,1967.1,1967.0,2.41136]
[1742554228916,1.01731,1966.9,1966.8,41.81734]
[1742554229110,1.01731,1966.9,1966.8,42.1941]
[1742554229311,1.01731,1966.9,1966.8,40.8]
[1742554229515,4.22511,1966.9,1966.8,40.8]
[1742554230507,4.22511,1966.9,1966.8,42.2066]
[1742554230709,1.01731,1966.9,1966.8,43.22396]
[1742554232119,4.37628,1967.0,1966.9,1.01726]
[1742554232318,3.359,1967.0,1966.9,3.00216]
[1742554232621,3.359,1967.2,1967.1,1.01717]
[1742554233219,3.359,1967.2,1967.1,2.31367]
[1742554233420,4.37623,1967.2,1967.1,1.2965]
[1742554233626,1.01721,1967.1,1967.0,0.6886]
[1742554233830,1.01721,1967.1,1967.0,3.00236]
[1742554235931,2.34271,1967.1,1967.0,3.00236]
[1742554236730,2.34271,1967.1,1967.0,1.2965]
[1742554236931,5.55051,1967.1,1967.0,1.2965]
[1742554237133,1.0174,1966.9,1966.8,1.01734]
[1742554237330,4.3764,1966.9,1966.8,2.96584]
[1742554237531,6.3459,1966.9,1966.8,2.96584]
[1742554238636,4.6845,1966.9,1966.8,2.96584]
[1742554238837,3.359,1966.9,1966.8,2.96584]
[1742554239037,1.0173,1967.0,1966.9,1.01731]
[1742554239336,1.0173,1967.0,1966.9,2.41011]
[1742554239831,1.0173,1967.0,1966.9,43.21011]
[1742554240431,2.4142,1967.0,1966.9,43.21011]
[1742554242435,2.4142,1967.0,1966.9,2.41011]
[1742554243136,2.4142,1967.0,1966.9,1.3928]
[1742554244633,2.4142,1967.0,1966.9,2.41011]
[1742554244838,2.4142,1967.0,1966.9,1.3928]
[1742554245940,2.4142,1967.0,1966.9,2.41011]
[1742554246941,2.4142,1967.0,1966.9,1.3928]
[1742554248644,5.622,1967.0,1966.8,0.6503]
[1742554248843,1.01736,1966.8,1966.7,1.01738]
[1742554249141,1.01736,1966.8,1966.7,2.41728]
[1742554249336,2.41096,1966.8,1966.7,1.3999]
[1742554249642,5.61876,1966.8,1966.7,1.3999]
[1742554249943,5.61876,1966.8,1966.7,2.41732]
[1742554250143,5.61876,1966.8,1966.7,1.3999]
[1742554251139,5.61876,1966.8,1966.7,2.41732]
[1742554251444,1.01742,1966.7,1966.6,41.82504982]
[1742554251638,3.03712,1966.7,1966.6,1.42161982]
[1742554251845,6.39512,1966.7,1966.6,0.00761982]
[1742554262451,3.358,1967.0,1966.7,2.54342]
[1742554262752,0.00761982,1967.3,1966.9,3.2078]
[1742554262947,4.38276982,1967.3,1967.2,1.01716]
[1742554263151,4.38276982,1967.3,1967.2,3.05276]
[1742554263448,4.38276982,1967.3,1967.2,3.75126]
[1742554266243,1.02471982,1967.3,1967.2,3.75126]
[1742554266447,0.00761982,1967.3,1967.2,3.75126]
[1742554269156,1.01701,1967.5,1967.4,1.01705]
[1742554269754,2.3877,1967.6,1967.5,1.017]
[1742554269956,7.6323312,1967.7,1967.6,1.01695]
[1742554270255,7.63995102,1967.7,1967.6,1.01695]
[1742554270760,8.65685102,1967.7,1967.6,1.01695]
[1742554270961,8.65685102,1967.7,1967.6,1.70415]
[1742554271554,10.02755102,1967.7,1967.6,1.70415]
[1742554272062,8.65685102,1967.7,1967.6,1.70415]
[1742554272356,7.63995102,1967.7,1967.6,2.36155]
[1742554272951,8.65685102,1967.7,1967.6,2.36155]
[1742554273553,7.63995102,1967.7,1967.6,2.36155]
[1742554273956,9.03005102,1967.7,1967.6,2.36155]
[1742554274461,10.04695102,1967.7,1967.6,2.36155]
[1742554275153,7.63995102,1967.7,1967.6,2.36155]
[1742554275353,8.65685102,1967.7,1967.6,2.36155]
[1742554275549,7.63995102,1967.7,1967.6,2.36155]
[1742554276064,4.90638,1968.0,1967.9,1.01679]
[1742554276257,2.54162,1968.2,1968.1,1.01669]
[1742554276258,3.357,1968.2,1968.1,1.01669]
[1742554276459,5.59411,1968.3,1968.2,1.01664]
[1742554276650,4.0209,1968.4,1968.3,1.01659]
[1742554276854,6.40718,1968.4,1968.3,1.01659]
[1742554277153,3.357,1968.4,1968.3,1.01659]
[1742554277462,4.22432,1968.5,1968.4,1.01654]
[1742554277463,8.95102,1968.5,1968.4,1.01654]
[1742554278948,8.95102,1968.5,1968.4,2.32734]
[1742554279258,7.9345,1968.5,1968.4,2.32734]
[1742554279458,4.22428,1968.5,1968.4,3.01254]
[1742554279660,4.22428,1968.5,1968.4,3.69194]
[1742554279860,4.7541,1968.6,1968.5,1.01648]
[1742554280062,4.7541,1968.6,1968.5,2.32728]
[1742554281059,1.01648,1968.6,1968.5,2.32728]
[1742554281560,2.30458,1968.6,1968.5,2.32728]
[1742554282358,2.30458,1968.6,1968.5,1.3108]
[1742554282759,1.01648,1968.5,1968.4,0.6852]
[1742554282958,2.30458,1968.5,1968.4,0.6852]
[1742554283165,2.30458,1968.5,1968.4,1.70174]
[1742554283359,2.30458,1968.5,1968.4,3.02594]
[1742554284264,3.355,1968.6,1968.5,1.01648]
[1742554284465,3.355,1968.6,1968.5,2.33058]
[1742554284466,4.37143,1968.6,1968.5,2.33058]
[1742554284961,3.355,1968.6,1968.5,2.33058]
[1742554285264,4.37143,1968.6,1968.5,2.33058]
[1742554285965,5.70633,1968.6,1968.5,2.33058]
[1742554286364,2.35133,1968.6,1968.5,2.33058]
[1742554286564,1.3349,1968.6,1968.5,2.33058]
[1742554287266,2.35133,1968.6,1968.5,2.33058]
[1742554288071,1.3349,1968.6,1968.5,2.33058]
[1742554288267,3.2078,1969.1,1968.5,4.5219]
[1742554288565,1.01618,1969.1,1969.0,1.01623]
[1742554289665,2.39758,1969.1,1969.0,2.30253]
[1742554292865,2.39758,1969.1,1968.9,0.6615]
[1742554293067,3.08943,1969.0,1968.9,2.96268]
[1742554297566,1.3765,1969.0,1968.9,2.96268]
[1742554297974,2.39273,1969.0,1968.9,2.96268]
[1742554298574,1.3765,1969.0,1968.9,2.96268]
[1742554298971,2.39273,1969.0,1968.9,2.96268]
[1742554299269,1.3765,1969.0,1968.9,2.96268]
[1742554300175,2.39273,1969.0,1968.9,2.96268]
[1742554301173,1.3765,1969.0,1968.9,2.96268]
[1742554303368,2.39273,1969.0,1968.9,1.01628]
[1742554303568,2.39273,1969.0,1968.7,2.54095]
[1742554303569,1.01633,1968.9,1968.8,1.01628]
[1742554303874,1.01633,1968.8,1968.7,2.36044]
[1742554304370,2.42673,1968.8,1968.7,2.36044]
[1742554305767,1.4104,1968.8,1968.7,2.36044]
[1742554309279,0.6594,1968.9,1968.8,1.01633]
[1742554309478,1.3939,1968.9,1968.8,2.97523]
[1742554311379,1.68111,1969.1,1969.0,1.01623]
[1742554312683,3.02101,1969.1,1969.0,2.38653]
[1742554313182,2.0048,1969.1,1969.0,2.38653]
[1742554313583,3.02098,1969.1,1969.0,2.38653]
[1742554315490,2.0048,1969.1,1969.0,2.38653]
[1742554315880,3.02098,1969.1,1969.0,2.38653]
[1742554316183,0.5911,1969.5,1969.4,1.01602]
[1742554316484,6.5598,1969.6,1969.5,1.01597]
[1742554316677,7.57572,1969.6,1969.5,1.01597]
[1742554316990,1.01597,1969.5,1969.4,41.81598]
[1742554317184,1.60687,1969.5,1969.4,41.81598]
[1742554317681,2.0923,1969.5,1969.4,41.81598]
[1742554317982,2.0923,1969.5,1969.4,43.90658]
[1742554318778,2.0923,1969.5,1969.4,3.10658]
[1742554319276,1.4099,1969.5,1969.4,43.90658]
[1742554319482,3.2078,1969.6,1969.5,1.01597]
[1742554319685,3.2078,1969.6,1969.5,2.41897]
[1742554320082,0.6824,1969.7,1969.6,1.01592]
[1742554320388,0.6824,1969.7,1969.6,2.41892]
[1742554320783,7.5756,1969.9,1969.6,2.41892]
[1742554320784,3.2078,1969.9,1969.8,1.01581]
[1742554321088,4.36771,1970.0,1969.9,1.01576]
[1742554321388,3.352,1970.0,1969.9,2.37016]
[1742554321789,1.01556,1970.4,1969.9,4.5622]
[1742554322086,4.3666,1970.3,1970.2,1.01556]
[1742554322283,1.01561,1970.2,1970.1,2.37001]
[1742554322482,1.01581,1969.9,1969.8,1.01575]
[1742554322682,1.01581,1969.9,1969.8,2.37015]
[1742554323082,1.3097,1969.9,1969.8,2.37015]
[1742554323896,2.32546,1969.9,1969.8,2.37015]
[1742554324087,1.3097,1969.9,1969.8,2.37015]
[1742554324787,2.32546,1969.9,1969.8,2.37015]
[1742554327288,7.20016,1969.9,1969.5,0.6859]
[1742554327493,1.01592,1969.7,1969.6,2.43572]
[1742554327694,2.93536,1969.8,1969.7,1.01587]
[1742554327993,2.34506,1969.8,1969.7,2.43567]
[1742554328188,1.3292,1969.8,1969.7,2.43567]
[1742554328595,2.34501,1969.8,1969.7,2.43567]
[1742554328890,1.3292,1969.8,1969.7,2.43567]
[1742554329096,2.34501,1969.8,1969.7,3.12347]
[1742554330489,1.3292,1969.8,1969.7,3.12347]
[1742554330692,3.351,1969.9,1969.8,1.01581]
[1742554330893,1.4111,1969.9,1969.8,2.31121]
[1742554331197,4.88846,1970.0,1969.9,1.01576]
[1742554331396,6.29956,1970.0,1969.9,2.31116]
[1742554332392,5.2838,1970.0,1969.9,2.31116]
[1742554333199,6.29951,1970.0,1969.9,2.31116]
[1742554333497,5.2838,1970.0,1969.9,2.31116]
[1742554333699,6.29951,1970.0,1969.9,2.31116]
[1742554334502,6.29951,1970.0,1969.9,1.2954]
[1742554334698,6.88961,1970.0,1969.9,1.2954]
[1742554335701,6.88961,1970.0,1969.9,2.31116]
[1742554335903,6.88961,1970.0,1969.9,1.2954]
[1742554336804,6.88961,1970.0,1969.7,1.70363]
[1742554336805,1.01581,1969.8,1969.7,1.70363]
[1742554336996,1.01581,1969.8,1969.7,3.11543]
[1742554337701,2.34861,1969.8,1969.7,3.11543]
[1742554338300,1.3328,1969.8,1969.7,3.11543]
[1742554338602,2.34861,1969.8,1969.7,3.11543]
[1742554339395,1.3328,1969.8,1969.7,3.11543]
[1742554339600,2.34861,1969.8,1969.7,3.11543]
[1742554342500,1.3328,1969.8,1969.7,3.11543]
[1742554342703,2.34861,1969.8,1969.7,3.11543]
[1742554343603,5.55641,1969.8,1969.7,1.4118]
[1742554344004,6.14671,1969.8,1969.7,1.4118]
[1742554344407,6.14671,1969.8,1969.7,2.42767]
[1742554344909,5.55641,1969.8,1969.7,2.42767]
[1742554346313,5.55641,1969.8,1969.7,1.4118]
[1742554347210,1.01592,1969.6,1969.5,1.68147]
[1742554347402,1.01592,1969.6,1969.5,1.3259]
[1742554347602,1.01597,1969.5,1969.4,40.8]
[1742554347806,1.01597,1969.5,1969.3,1.33351982]
[1742554347807,1.01602,1969.4,1969.3,1.33351982]
[1742554348114,4.81432,1969.4,1969.3,0.00761982]
[1742554348414,6.12672,1969.4,1969.3,0.00761982]
[1742554348914,1.01618,1969.1,1969.0,1.0162]
[1742554349211,2.54069,1969.0,1968.7,4.22414]
[1742554349413,1.01628,1968.9,1968.8,43.15212]
[1742554349613,2.32868,1968.9,1968.8,43.15212]
[1742554352115,5.53648,1968.9,1968.8,42.1358]
[1742554352310,2.32868,1968.9,1968.8,43.15213]
[1742554352912,1.01628,1968.9,1968.8,43.15213]
[1742554353414,1.01628,1968.9,1968.8,42.1358]
[1742554353415,2.30758,1968.9,1968.8,42.1358]
[1742554353611,3.2078,1969.7,1968.8,51.1936]
[1742554353810,1.01601,1969.5,1969.4,1.01596]
[1742554354414,1.01601,1969.5,1969.4,1.4046]
[1742554354611,1.01601,1969.5,1969.4,2.42062]
[1742554354814,1.01601,1969.5,1969.4,1.4046]
[1742554355018,1.01602,1969.4,1969.3,0.00761982]
[1742554355214,2.33162,1969.4,1969.3,1.41221982]
[1742554355415,2.33162,1969.4,1969.3,0.00761982]
[1742554355606,3.01522,1969.4,1969.3,1.41221982]
[1742554356812,3.72492,1969.4,1969.3,1.41221982]
[1742554357114,3.72492,1969.4,1969.3,0.00761982]
[1742554357619,4.2238,1969.5,1969.3,0.00761982]
[1742554357917,4.22377,1969.5,1969.4,1.01602]
[1742554358119,1.01597,1969.5,1969.4,3.70242]
[1742554358917,2.39515,1969.6,1969.5,1.01597]
[1742554359119,1.01595,1969.6,1969.5,1.3324]
[1742554359319,6.31265,1969.6,1969.5,1.3324]
[1742554359914,1.01602,1969.4,1969.3,0.00761982]
[1742554360214,4.22382,1969.4,1969.3,0.00761982]
[1742554360623,5.50632,1969.4,1969.3,0.00761982]